fUST/lending_fUST_20240714
["ID","MTS","AMOUNT","RATE_DAILY","PERIOD"]
[331983818,1720921842654,-500.0,0.00024657,2]
[331983819,1720921842663,-503.38196138,0.00024657,2]
[331983821,1720921842673,-500.0,0.00024657,2]
[331983822,1720921842683,-500.0,0.00024657,2]
[331983823,1720921842695,-501.2004926,0.00024657,2]
[331983824,1720921842704,-500.0,0.00024657,2]
[331983825,1720921842714,-561.02961366,0.00024657,2]
[331983826,1720921842723,-505.33074697,0.00024657,2]
[331983828,1720921842733,-505.06735446,0.00024657,2]
[331983829,1720921842742,-151.0,0.00024657,7]
[331983830,1720921842752,-1500.0,0.00024657,2]
[331983831,1720921842764,-501.14799265,0.00024657,2]
[331983832,1720921842775,-500.0,0.00024657,2]
[331983834,1720921842784,-500.0,0.00024657,2]
[331983836,1720921842794,-540.05,0.00024657,2]
[331983840,1720921842803,-500.0,0.00024657,2]
[331983844,1720921842815,-505.08131615,0.00024657,2]
[331983845,1720921842825,-500.0,0.00024657,2]
[331983846,1720921842834,-503.33080396,0.00024657,2]
[331983847,1720921842843,-500.0,0.00024657,2]
[331983848,1720921842853,-547.09,0.00024657,2]
[331983849,1720921842862,-502.78679301,0.00024657,2]
[331983850,1720921842873,-515.9582359,0.00024657,2]
[331983851,1720921842882,-502.03626544,0.00024657,2]
[331983852,1720921842892,-500.0,0.00024657,2]
[331983853,1720921842902,-500.0,0.00024657,2]
[331983854,1720921842912,-475.1696104,0.00024657,2]
[331983855,1720921842922,-500.0,0.00024657,2]
[331983856,1720921842932,-500.0,0.00024657,2]
[331983857,1720921842942,-506.76778158,0.00024657,2]
[331983860,1720921842952,-519.30771727,0.00024657,2]
[331983875,1720921843018,-500.0,0.00024657,2]
[331983877,1720921843035,-515.7858172,0.00024657,2]
[331983878,1720921843045,-637.76546221,0.00024657,2]
[331983879,1720921843055,-500.0,0.00024657,2]
[331983880,1720921843065,-500.0,0.00024657,2]
[331983881,1720921843074,-500.0,0.00024657,2]
[331983883,1720921843084,-500.0,0.00024657,2]
[331983885,1720921843094,-500.0,0.00024657,2]
[331983888,1720921843104,-500.0,0.00024657,2]
[331983889,1720921843114,-500.0,0.00024657,2]
[331983890,1720921843124,-500.0,0.00024657,2]
[331983891,1720921843134,-500.0,0.00024657,2]
[331983892,1720921843143,-500.0,0.00024657,2]
[331983893,1720921843153,-500.0,0.00024657,2]
[331983894,1720921843164,-500.0,0.00024657,2]
[331983895,1720921843173,-503.3298513,0.00024657,2]
[331983896,1720921843183,-555.44,0.00024657,2]
[331983897,1720921843192,-500.0,0.00024657,2]
[331983898,1720921843202,-556.188349,0.00024657,7]
[331983899,1720921843211,-500.0,0.00024657,2]
[331983900,1720921843222,-500.0,0.00024657,2]
[331983901,1720921843232,-649.3688754,0.00024657,2]
[331983902,1720921843241,-200.0,0.00024657,2]
[331983903,1720921843251,-556.188349,0.00024657,7]
[331983904,1720921843261,-500.0,0.00024657,2]
[331983905,1720921843272,-501.77071312,0.00024657,2]
[331983906,1720921843283,-535.248463,0.00024657,2]
[331983907,1720921843293,-500.0,0.00024657,2]
[331983908,1720921843304,-500.0,0.00024657,2]
[331983909,1720921843314,-500.0,0.00024657,2]
[331983910,1720921843324,-500.0,0.00024657,2]
[331983911,1720921843335,-500.0,0.00024657,2]
[331983912,1720921843345,-500.0,0.00024657,2]
[331983913,1720921843355,-500.0,0.00024657,2]
[331983914,1720921843366,-500.0,0.00024657,2]
[331983915,1720921843376,-503.17633158,0.00024657,2]
[331983916,1720921843386,-500.0,0.00024657,2]
[331983917,1720921843395,-525.49278574,0.00024657,2]
[331983918,1720921843405,-500.0,0.00024657,2]
[331983919,1720921843416,-500.0,0.00024657,2]
[331983920,1720921843425,-500.0,0.00024657,2]
[331983921,1720921843435,-500.0,0.00024657,2]
[331983922,1720921843444,-500.0,0.00024657,2]
[331983923,1720921843454,-500.0,0.00024657,2]
[331983924,1720921843463,-460.274942,0.00024657,7]
[331983925,1720921843472,-501.79885342,0.00024657,2]
[331983926,1720921843483,-500.0,0.00024657,2]
[331983927,1720921843493,-500.0,0.00024657,2]
[331983928,1720921843503,-500.0,0.00024657,2]
[331983929,1720921843512,-500.0,0.00024657,2]
[331983930,1720921843522,-500.0,0.00024657,2]
[331983931,1720921843532,-460.274942,0.00024657,7]
[331983932,1720921843542,-500.0,0.00024657,2]
[331983933,1720921843552,-500.0,0.00024657,2]
[331983934,1720921843561,-502.2440729,0.00024657,2]
[331983935,1720921843571,-727.58,0.00024657,2]
[331983936,1720921843581,-500.0,0.00024657,2]
[331983937,1720921843591,-500.0,0.00024657,2]
[331983938,1720921843600,-500.0,0.00024657,2]
[331983939,1720921843610,-500.0,0.00024657,2]
[331983940,1720921843620,-501.6641794,0.00024657,2]
[331983941,1720921843629,-500.0,0.00024657,2]
[331983942,1720921843639,-500.0,0.00024657,2]
[331983943,1720921843649,-500.0,0.00024657,2]
[331983944,1720921843659,-2215.64,0.00024657,2]
[331983945,1720921843670,-500.0,0.00024657,2]
[331983946,1720921843680,-500.0,0.00024657,2]
[331983947,1720921843692,-501.57594867,0.00024657,2]
[331983948,1720921843702,-500.0,0.00024657,2]
[331983949,1720921843712,-500.0,0.00024657,2]
[331983950,1720921843722,-500.0,0.00024657,2]
[331983951,1720921843731,-254.80344226,0.00024657,2]
[331983952,1720921843741,-505.43060035,0.00024657,2]
[331983953,1720921843751,-513.95906503,0.00024657,2]
[331983954,1720921843763,-500.0,0.00024657,2]
[331983955,1720921843775,-502.45806969,0.00024657,2]
[331983956,1720921843784,-296.095037,0.00024657,7]
[331983957,1720921843793,-500.0,0.00024657,2]
[331983958,1720921843803,-504.91086925,0.00024657,2]
[331983959,1720921843813,-296.095037,0.00024657,7]
[331983960,1720921843822,-500.0,0.00024657,2]
[331983961,1720921843831,-501.58970087,0.00024657,2]
[331983962,1720921843841,-500.0,0.00024657,2]
[331983963,1720921843851,-500.0,0.00024657,2]
[331983964,1720921843861,-2754.54,0.00024657,2]
[331983965,1720921843870,-500.0,0.00024657,2]
[331983966,1720921843879,-500.0,0.00024657,2]
[331983967,1720921843889,-500.0,0.00024657,2]
[331983968,1720921843899,-500.0,0.00024657,2]
[331983969,1720921843909,-503.08758996,0.00024657,2]
[331983970,1720921843919,-151.868163,0.00024657,7]
[331983971,1720921843929,-337.85287885,0.00024657,2]
[331983972,1720921843939,-500.0,0.00024657,2]
[331983973,1720921843949,-500.0,0.00024657,2]
[331983974,1720921843959,-180.49353245,0.00024657,2]
[331983975,1720921843968,-21179.5,0.00024657,2]
[331983976,1720921843978,-500.0,0.00024657,2]
[331983977,1720921843987,-500.0,0.00024657,2]
[331983978,1720921843997,-500.0,0.00024657,2]
[331983979,1720921844006,-1071.83,0.00024657,2]
[331983980,1720921844015,-509.91196703,0.00024657,2]
[331983981,1720921844027,-515.61343694,0.00024657,2]
[331983982,1720921844036,-503.13036073,0.00024657,2]
[331983983,1720921844045,-500.0,0.00024657,2]
[331983984,1720921844054,-501.26110436,0.00024657,2]
[331983985,1720921844064,-500.0,0.00024657,2]
[331983986,1720921844073,-151.0,0.00024657,7]
[331983987,1720921844083,-500.0,0.00024657,2]
[331983988,1720921844093,-500.0,0.00024657,2]
[331983989,1720921844102,-500.0,0.00024657,2]
[331983990,1720921844112,-500.0,0.00024657,2]
[331983991,1720921844121,-500.0,0.00024657,2]
[331983992,1720921844130,-500.0,0.00024657,2]
[331983993,1720921844140,-500.0,0.00024657,2]
[331983994,1720921844149,-500.0,0.00024657,2]
[331983995,1720921844158,-500.0,0.00024657,2]
[331983996,1720921844227,-502.26590797,0.00024657,2]
[331983997,1720921844236,-151.0,0.00024657,7]
[331983998,1720921844246,-503.56517578,0.00024657,2]
[331983999,1720921844255,-500.0,0.00024657,2]
[331984000,1720921844265,-500.0,0.00024657,2]
[331984001,1720921844275,-591.71,0.00024657,2]
[331984002,1720921844285,-500.0,0.00024657,2]
[331984004,1720921844295,-501.40367116,0.00024657,2]
[331984006,1720921844305,-500.0,0.00024657,2]
[331984007,1720921844314,-519.35035287,0.00024657,2]
[331984009,1720921844324,-500.0,0.00024657,2]
[331984010,1720921844334,-500.0,0.00024657,2]
[331984011,1720921844343,-500.0,0.00024657,2]
[331984013,1720921844353,-504.70250053,0.00024657,2]
[331984015,1720921844363,-503.97510992,0.00024657,2]
[331984017,1720921844372,-500.0,0.00024657,2]
[331984018,1720921844383,-500.0,0.00024657,2]
[331984019,1720921844392,-536.25212028,0.00024657,2]
[331984020,1720921844402,-481.582522,0.00024657,7]
[331984021,1720921844413,-208.02193064,0.00024657,2]
[331984022,1720921844423,-500.0,0.00024657,2]
[331984024,1720921844434,-1507.67,0.00024657,2]
[331984026,1720921844444,-501.75758518,0.00024657,2]
[331984028,1720921844455,-481.582522,0.00024657,7]
[331984029,1720921844465,-500.0,0.00024657,2]
[331984030,1720921844474,-3719.34,0.00024657,2]
[331984031,1720921844484,-500.0,0.00024657,2]
[331984032,1720921844494,-500.0,0.00024657,2]
[331984033,1720921844504,-505.31147761,0.00024657,2]
[331984034,1720921844515,-500.0,0.00024657,2]
[331984035,1720921844525,-500.0,0.00024657,2]
[331984036,1720921844535,-524.57865613,0.00024657,2]
[331984037,1720921844546,-504.81185523,0.00024657,2]
[331984038,1720921844556,-500.0,0.00024657,2]
[331984039,1720921844566,-500.0,0.00024657,2]
[331984040,1720921844576,-500.0,0.00024657,2]
[331984041,1720921844586,-500.0,0.00024657,2]
[331984042,1720921844597,-500.0,0.00024657,2]
[331984043,1720921844607,-500.0,0.00024657,2]
[331984044,1720921844618,-500.0,0.00024657,2]
[331984045,1720921844627,-500.0,0.00024657,2]
[331984046,1720921844639,-593.08716324,0.00024657,2]
[331984047,1720921844649,-500.0,0.00024657,2]
[331984048,1720921844659,-500.0,0.00024657,2]
[331984049,1720921844670,-200.0,0.00024657,7]
[331984050,1720921844679,-500.0,0.00024657,2]
[331984051,1720921844691,-500.42558714,0.00024657,2]
[331984052,1720921844700,-500.0,0.00024657,2]
[331984053,1720921844711,-500.0,0.00024657,2]
[331984054,1720921844720,-523.48282397,0.00024657,2]
[331984055,1720921844730,-500.0,0.00024657,2]
[331984056,1720921844739,-521.80503235,0.00024657,2]
[331984057,1720921844748,-903.8,0.00024657,2]
[331984058,1720921844762,-548.46684158,0.00024657,2]
[331984059,1720921844772,-200.0,0.00024658,2]
[331984060,1720921844781,-380.0,0.00024658,2]
[331984061,1720921844791,-152.579321,0.00024658,7]
[331984062,1720921844801,-880.10405,0.00024658,7]
[331984063,1720921844810,-880.10405,0.00024658,7]
[331984064,1720921844819,-500.0,0.00024658,2]
[331984065,1720921844829,-500.0,0.00024658,2]
[331984066,1720921844838,-463.89459648,0.00024658,2]
[331984067,1720921844848,-500.0,0.00024658,2]
[331984068,1720921844857,-500.0,0.00024658,2]
[331984069,1720921844866,-500.0,0.00024658,2]
[331984070,1720921844875,-500.0,0.00024658,2]
[331984071,1720921844885,-500.0,0.00024658,2]
[331984072,1720921844895,-500.0,0.00024658,2]
[331984073,1720921844905,-500.0,0.00024658,2]
[331984074,1720921844914,-500.0,0.00024658,2]
[331984075,1720921844923,-500.0,0.00024658,2]
[331984076,1720921844932,-500.0,0.00024658,2]
[331984077,1720921844942,-500.0,0.00024658,2]
[331984078,1720921844952,-358.76122781,0.00024685,2]
[331984079,1720921844961,-288.59819013,0.000248,2]
[331984080,1720921844970,-1818.14182658,0.00024821,2]
[331984081,1720921844980,-302.18418728,0.000249,2]
[331984082,1720921844989,-302.15405627,0.000249,2]
[331984083,1720921844999,-500.0,0.0002492,2]
[331984084,1720921845010,-30759.592146,0.00024921,3]
[331984085,1720921845022,-152.493398,0.00024921,7]
[331984086,1720921845032,-151.0,0.00024921,7]
[331984087,1720921845042,-154.766639,0.00024921,7]
[331984088,1720921845052,-151.0,0.00024921,7]
[331984089,1720921845062,-523.027229,0.00024921,7]
[331984090,1720921845071,-523.027229,0.00024921,7]
[331984091,1720921845080,-151.0,0.00024921,7]
[331984092,1720921845089,-221.93089,0.00024921,7]
[331984093,1720921845099,-221.93089,0.00024921,7]
[331984094,1720921845110,-153.545976,0.00024921,7]
[331984095,1720921845120,-500.0,0.0002493,2]
[331984096,1720921845130,-248.31635732,0.0002493,2]
[331984097,1720921845140,-17601.83660398,0.00024931,5]
[331984098,1720921845151,-2123.44630192,0.00024931,5]
[331984099,1720921845161,-500.0,0.00024931,2]
[331984100,1720921845170,-500.0,0.00024931,2]
[331984101,1720921845181,-501.33501488,0.00024931,2]
[331984102,1720921845193,-525.56961694,0.00024931,2]
[331984103,1720921845204,-521.9283635,0.00024931,2]
[331984104,1720921845214,-503.97008571,0.00024931,2]
[331984105,1720921845225,-500.0,0.00024931,2]
[331984106,1720921845235,-500.0,0.00024931,2]
[331984107,1720921845244,-226.59551235,0.00024931,2]
[331984108,1720921845254,-1539.41,0.00024931,2]
[331984109,1720921845263,-500.0,0.00024931,2]
[331984110,1720921845273,-500.0,0.00024931,2]
[331984111,1720921845338,-505.14512963,0.00024931,2]
[331984112,1720921845349,-503.01968021,0.00024931,2]
[331984113,1720921845359,-500.0,0.00024931,2]
[331984114,1720921845368,-500.0,0.00024931,2]
[331984115,1720921845377,-500.0,0.00024931,2]
[331984116,1720921845387,-500.0,0.00024931,2]
[331984117,1720921845396,-500.0,0.00024931,2]
[331984118,1720921845406,-500.0,0.00024931,2]
[331984119,1720921845415,-212.48195604,0.00024931,2]
[331984120,1720921845425,-500.0,0.00024931,2]
[331984121,1720921845434,-500.0,0.00024931,2]
[331984122,1720921845444,-504.38836669,0.00024931,2]
[331984123,1720921845453,-500.0,0.00024931,2]
[331984124,1720921845462,-500.0,0.00024931,2]
[331984125,1720921845471,-500.0,0.00024931,2]
[331984126,1720921845481,-500.0,0.00024931,2]
[331984127,1720921845491,-500.0,0.00024931,2]
[331984128,1720921845500,-286.49385376,0.00024931,2]
[331984129,1720921845510,-500.0,0.00024931,2]
[331984130,1720921845520,-600.48941339,0.00024931,2]
[331984131,1720921845530,-500.0,0.00024931,2]
[331984132,1720921845541,-500.0,0.00024931,2]
[331984133,1720921845550,-500.0,0.00024931,2]
[331984134,1720921845560,-500.0,0.00024931,2]
[331984135,1720921845570,-500.0,0.00024931,2]
[331984136,1720921845579,-500.0,0.00024931,2]
[331984137,1720921845590,-500.0,0.00024931,2]
[331984138,1720921845599,-500.0,0.00024931,2]
[331984139,1720921845609,-500.0,0.00024931,2]
[331984140,1720921845619,-500.0,0.00024931,2]
[331984141,1720921845628,-500.0,0.00024931,2]
[331984142,1720921845638,-500.41774075,0.00024931,2]
[331984143,1720921845649,-500.0,0.00024931,2]
[331984144,1720921845659,-500.0,0.00024931,2]
[331984145,1720921845670,-500.0,0.00024931,2]
[331984146,1720921845682,-500.0,0.00024931,2]
[331984147,1720921845693,-500.0,0.00024931,2]
[331984148,1720921845703,-500.0,0.00024931,2]
[331984149,1720921845715,-500.0,0.00024931,2]
[331984150,1720921845726,-500.0,0.00024931,2]
[331984151,1720921845736,-500.0,0.00024931,2]
[331984152,1720921845746,-500.0,0.00024931,2]
[331984153,1720921845757,-500.0,0.00024931,2]
[331984154,1720921845767,-500.0,0.00024931,2]
[331984155,1720921845778,-500.0,0.00024931,2]
[331984156,1720921845788,-511.72809015,0.00024931,2]
[331984157,1720921845797,-500.0,0.00024931,2]
[331984158,1720921845807,-500.0,0.00024931,2]
[331984159,1720921845816,-500.0,0.00024931,2]
[331984160,1720921845825,-500.0,0.00024931,2]
[331984161,1720921845835,-321.9032225,0.00024931,2]
[331984162,1720921845845,-500.0,0.00024931,2]
[331984163,1720921845854,-500.0,0.00024931,2]
[331984164,1720921845863,-500.0,0.00024931,2]
[331984165,1720921845872,-500.0,0.00024931,2]
[331984166,1720921845881,-500.0,0.00024931,2]
[331984167,1720921845891,-500.0,0.00024931,2]
[331984168,1720921845900,-500.0,0.00024931,2]
[331984169,1720921845909,-500.0,0.00024931,2]
[331984170,1720921845919,-500.0,0.00024931,2]
[331984171,1720921845928,-500.0,0.00024931,2]
[331984172,1720921845937,-151.0,0.00024931,7]
[331984174,1720921845946,-500.0,0.00024931,2]
[331984176,1720921845955,-500.0,0.00024931,2]
[331984178,1720921845965,-500.0,0.00024931,2]
[331984179,1720921845974,-500.0,0.00024931,2]
[331984180,1720921845983,-151.0,0.00024931,7]
[331984181,1720921845992,-319.47769847,0.00024931,2]
[331984183,1720921846001,-500.0,0.00024931,2]
[331984184,1720921846011,-511.45864832,0.00024931,2]
[331984187,1720921846023,-500.0,0.00024931,2]
[331984188,1720921846032,-500.0,0.00024931,2]
[331984191,1720921846041,-500.0,0.00024931,2]
[331984193,1720921846051,-151.0,0.00024931,7]
[331984195,1720921846061,-500.0,0.00024931,2]
[331984197,1720921846070,-500.0,0.00024931,2]
[331984199,1720921846080,-500.0,0.00024931,2]
[331984201,1720921846089,-513.84009734,0.00024931,2]
[331984202,1720921846099,-500.0,0.00024931,2]
[331984203,1720921846116,-504.56228868,0.00024931,2]
[331984204,1720921846129,-505.27859909,0.00024931,2]
[331984205,1720921846139,-500.0,0.00024931,2]
[331984206,1720921846149,-500.0,0.00024931,2]
[331984207,1720921846159,-500.0,0.00024931,2]
[331984208,1720921846169,-151.0,0.00024931,4]
[331984209,1720921846179,-500.0,0.00024931,2]
[331984210,1720921846189,-469.51986175,0.00024931,2]
[331984211,1720921846199,-502.47333537,0.00024931,2]
[331984212,1720921846209,-151.0,0.00024931,7]
[331984213,1720921846219,-500.0,0.00024931,2]
[331984214,1720921846228,-500.0,0.00024931,2]
[331984215,1720921846238,-500.0,0.00024931,2]
[331984216,1720921846247,-151.0,0.00024931,7]
[331984217,1720921846258,-500.0,0.00024931,2]
[331984218,1720921846268,-500.0,0.00024931,2]
[331984219,1720921846279,-500.0,0.00024931,2]
[331984220,1720921846289,-500.0,0.00024931,2]
[331984221,1720921846301,-589.44148159,0.00024931,2]
[331984222,1720921846404,-792.09,0.00024931,2]
[331984223,1720921846414,-521.890485,0.00024931,2]
[331984224,1720921846423,-500.0,0.00024931,2]
[331984225,1720921846433,-500.0,0.00024931,2]
[331984226,1720921846442,-500.0,0.00024931,2]
[331984227,1720921846451,-151.0,0.00024931,7]
[331984228,1720921846461,-520.02343932,0.00024931,2]
[331984229,1720921846471,-151.0,0.00024931,7]
[331984230,1720921846480,-500.0,0.00024931,2]
[331984231,1720921846490,-500.0,0.00024931,2]
[331984232,1720921846499,-500.0,0.00024931,2]
[331984233,1720921846509,-151.0,0.00024931,7]
[331984234,1720921846518,-151.0,0.00024931,7]
[331984235,1720921846533,-500.0,0.00024931,2]
[331984237,1720921846543,-503.79744632,0.00024931,2]
[331984239,1720921846553,-500.0,0.00024931,2]
[331984241,1720921846562,-151.0,0.00024931,7]
[331984242,1720921846572,-151.0,0.00024931,7]
[331984243,1720921846582,-500.0,0.00024931,2]
[331984245,1720921846592,-527.50871391,0.00024931,2]
[331984247,1720921846601,-500.0,0.00024931,2]
[331984249,1720921846611,-500.0,0.00024931,2]
[331984250,1720921846621,-500.0,0.00024931,2]
[331984252,1720921846630,-500.0,0.00024931,2]
[331984253,1720921846640,-500.0,0.00024931,2]
[331984255,1720921846650,-500.0,0.00024931,2]
[331984257,1720921846659,-500.0,0.00024931,2]
[331984259,1720921846670,-500.0,0.00024931,2]
[331984261,1720921846680,-500.0,0.00024931,2]
[331984262,1720921846694,-500.0,0.00024931,2]
[331984263,1720921846703,-500.0,0.00024931,2]
[331984264,1720921846714,-500.0,0.00024931,2]
[331984265,1720921846725,-500.0,0.00024931,2]
[331984266,1720921846736,-500.0,0.00024931,2]
[331984267,1720921846747,-500.0,0.00024931,2]
[331984268,1720921846756,-500.0,0.00024931,2]
[331984269,1720921846769,-500.0,0.00024931,2]
[331984270,1720921846779,-500.0,0.00024931,2]
[331984271,1720921846790,-622.49629127,0.00024931,2]
[331984272,1720921846801,-502.35806732,0.00024931,2]
[331984273,1720921846812,-682.299542,0.00024931,7]
[331984274,1720921846822,-682.299542,0.00024931,7]
[331984275,1720921846832,-500.0,0.00024931,2]
[331984276,1720921846841,-500.0,0.00024931,2]
[331984277,1720921846850,-500.0,0.00024931,2]
[331984278,1720921846867,-682.299542,0.00024931,7]
[331984279,1720921846888,-682.299542,0.00024931,7]
[331984280,1720921846906,-500.0,0.00024931,2]
[331984281,1720921846926,-500.0,0.00024931,2]
[331984282,1720921846949,-500.0,0.00024931,2]
[331984283,1720921846967,-500.0,0.00024931,2]
[331984284,1720921846988,-500.0,0.00024931,2]
[331984285,1720921847002,-500.0,0.00024931,2]
[331984286,1720921847019,-271.780153,0.00024931,7]
[331984287,1720921847041,-500.0,0.00024931,2]
[331984288,1720921847059,-503.60965721,0.00024931,2]
[331984289,1720921847072,-500.0,0.00024931,2]
[331984290,1720921847090,-500.0,0.00024931,2]
[331984291,1720921847107,-500.0,0.00024931,2]
[331984292,1720921847124,-500.0,0.00024931,2]
[331984293,1720921847138,-500.0,0.00024931,2]
[331984294,1720921847154,-151.0,0.00024931,7]
[331984295,1720921847168,-152.303851,0.00024931,7]
[331984296,1720921847182,-500.0,0.00024931,2]
[331984297,1720921847196,-503.69277265,0.00024931,2]
[331984298,1720921847211,-500.0,0.00024931,2]
[331984299,1720921847227,-500.0,0.00024931,2]
[331984300,1720921847241,-500.0,0.00024931,2]
[331984301,1720921847255,-500.0,0.00024931,2]
[331984302,1720921847270,-151.0,0.00024931,7]
[331984303,1720921847285,-151.0,0.00024931,7]
[331984304,1720921847299,-500.0,0.00024931,2]
[331984305,1720921847315,-158.38966,0.00024931,7]
[331984306,1720921847331,-500.0,0.00024931,2]
[331984307,1720921847346,-500.0,0.00024931,2]
[331984308,1720921847362,-500.0,0.00024931,2]
[331984309,1720921847376,-500.0,0.00024931,2]
[331984310,1720921847391,-500.0,0.00024931,2]
[331984311,1720921847405,-500.0,0.00024931,2]
[331984312,1720921847419,-500.0,0.00024931,2]
[331984313,1720921847435,-500.0,0.00024931,2]
[331984314,1720921847449,-500.0,0.00024931,2]
[331984315,1720921847463,-500.0,0.00024931,2]
[331984316,1720921847476,-500.0,0.00024931,2]
[331984317,1720921847491,-500.0,0.00024931,2]
[331984318,1720921847505,-500.0,0.00024931,2]
[331984319,1720921847521,-447.42496428,0.00024931,2]
[331984320,1720921847532,-500.0,0.00024931,2]
[331984321,1720921847542,-500.0,0.00024931,2]
[331984322,1720921847641,-500.0,0.00024931,2]
[331984323,1720921847658,-500.0,0.00024931,2]
[331984324,1720921847668,-500.0,0.00024931,2]
[331984325,1720921847678,-500.0,0.00024931,2]
[331984326,1720921847692,-628.7109991,0.00024931,2]
[331984327,1720921847702,-500.0,0.00024931,2]
[331984328,1720921847711,-500.0,0.00024931,2]
[331984329,1720921847721,-500.0,0.00024931,2]
[331984330,1720921847731,-500.0,0.00024931,2]
[331984331,1720921847739,-606.82,0.00024931,2]
[331984332,1720921847748,-500.0,0.00024931,2]
[331984333,1720921847760,-500.0,0.00024931,2]
[331984334,1720921847769,-153.876016,0.00024931,7]
[331984335,1720921847780,-502.5030755,0.00024931,2]
[331984336,1720921847790,-500.0,0.00024931,2]
[331984337,1720921847799,-500.0,0.00024931,2]
[331984338,1720921847808,-500.0,0.00024931,2]
[331984339,1720921847817,-544.9002513,0.00024931,2]
[331984340,1720921847827,-500.0,0.00024931,2]
[331984341,1720921847837,-500.0,0.00024931,2]
[331984342,1720921847847,-500.0,0.00024931,2]
[331984343,1720921847856,-399.01612676,0.00024931,2]
[331984344,1720921847866,-500.0,0.00024931,2]
[331984345,1720921847875,-151.0,0.00024931,7]
[331984346,1720921847885,-526.59542108,0.00024931,2]
[331984347,1720921847894,-500.0,0.00024931,2]
[331984348,1720921847904,-500.0,0.00024931,2]
[331984349,1720921847914,-523.027229,0.00024931,7]
[331984350,1720921847923,-500.0,0.00024931,2]
[331984351,1720921847933,-455.44941305,0.00024931,2]
[331984352,1720921847943,-523.027229,0.00024931,7]
[331984353,1720921847952,-500.0,0.00024931,2]
[331984354,1720921847962,-500.0,0.00024931,2]
[331984355,1720921847971,-503.53274404,0.00024931,2]
[331984356,1720921847981,-500.0,0.00024931,2]
[331984357,1720921847993,-765.57,0.00024931,2]
[331984358,1720921848005,-500.0,0.00024931,2]
[331984359,1720921848015,-500.0,0.00024931,2]
[331984360,1720921848025,-516.83,0.00024931,2]
[331984361,1720921848035,-509.64276312,0.00024931,2]
[331984362,1720921848044,-500.0,0.00024931,2]
[331984363,1720921848053,-151.0,0.00024931,7]
[331984364,1720921848063,-500.0,0.00024931,2]
[331984365,1720921848072,-500.0,0.00024931,2]
[331984366,1720921848081,-500.0,0.00024931,2]
[331984367,1720921848091,-221.93089,0.00024931,7]
[331984368,1720921848101,-500.0,0.00024931,2]
[331984369,1720921848111,-500.0,0.00024931,2]
[331984370,1720921848120,-221.93089,0.00024931,7]
[331984371,1720921848130,-500.0,0.00024931,2]
[331984372,1720921848140,-970.66,0.00024931,2]
[331984373,1720921848150,-880.10405,0.00024931,7]
[331984374,1720921848160,-880.10405,0.00024931,7]
[331984375,1720921848170,-160.90982571,0.00024931,2]
[331984376,1720921848179,-880.10405,0.00024931,7]
[331984377,1720921848189,-880.10405,0.00024931,7]
[331984378,1720921848198,-500.0,0.00024931,2]
[331984379,1720921848217,-500.0,0.00024931,2]
[331984380,1720921848230,-500.0,0.00024931,2]
[331984381,1720921848240,-500.0,0.00024931,2]